fUST/lending_fUST_20250905
["ID","MTS","AMOUNT","RATE_DAILY","PERIOD"]
[383684739,1757085043025,-1682.0,0.0002102,2]
[383684740,1757085043034,-1682.0,0.0002102,2]
[383684741,1757085043042,-1682.0,0.0002102,2]
[383684742,1757085043051,-1682.0,0.0002102,2]
[383684743,1757085043061,-1682.0,0.0002102,2]
[383684744,1757085043069,-1682.0,0.0002102,2]
[383684745,1757085043078,-1682.0,0.0002102,2]
[383684746,1757085043086,-1682.0,0.0002102,2]
[383684747,1757085043095,-1682.0,0.0002102,2]
[383684748,1757085043103,-1682.0,0.0002102,2]
[383684749,1757085043113,-1682.0,0.0002102,2]
[383684750,1757085043122,-1682.0,0.0002102,2]
[383684751,1757085043131,-1682.0,0.0002102,2]
[383684752,1757085043140,-532.47056206,0.0002102,2]
[383684753,1757085043149,-2605.157216,0.0002102,2]
[383684754,1757085043158,-3000.0,0.0002103,2]
[383684755,1757085043167,-3000.0,0.0002104,2]
[383684756,1757085043176,-3000.0,0.0002105,2]
[383684757,1757085043185,-3000.0,0.0002106,2]
[383684758,1757085043193,-3000.0,0.0002107,2]
[383684759,1757085043202,-3000.0,0.0002108,2]
[383684760,1757085043211,-3000.0,0.0002109,2]
[383684761,1757085043219,-1060.0,0.00021096,2]
[383684762,1757085043228,-3000.0,0.000211,2]
[383684763,1757085043238,-151.0,0.000211,3]
[383684764,1757085043247,-3000.0,0.0002111,2]
[383684765,1757085043257,-5000.0,0.00021113,2]
[383684766,1757085043266,-3000.0,0.0002112,2]
[383684767,1757085043275,-3000.0,0.0002113,2]
[383684768,1757085043284,-3000.0,0.0002114,2]
[383684769,1757085043293,-3000.0,0.0002115,2]
[383684770,1757085043301,-3000.0,0.0002116,2]
[383684771,1757085043310,-3000.0,0.0002117,2]
[383684772,1757085043319,-3000.0,0.0002118,2]
[383684773,1757085043328,-8448.07539903,0.00021185,2]
[383684774,1757085043337,-3000.0,0.0002119,2]
[383684775,1757085043346,-3000.0,0.000212,2]
[383684776,1757085043355,-3000.0,0.0002121,2]
[383684777,1757085043363,-3000.0,0.0002122,2]
[383684778,1757085043372,-3000.0,0.0002123,2]
[383684779,1757085043380,-3000.0,0.0002124,2]
[383684780,1757085043389,-3000.0,0.0002125,2]
[383684781,1757085043398,-3000.0,0.0002126,2]
[383684782,1757085043406,-3000.0,0.0002127,2]
[383684783,1757085043415,-3000.0,0.0002128,2]
[383684784,1757085043424,-3000.0,0.0002129,2]
[383684785,1757085043433,-3000.0,0.000213,2]
[383684786,1757085043443,-3000.0,0.0002131,2]
[383684787,1757085043453,-3000.0,0.0002132,2]
[383684788,1757085043462,-3000.0,0.0002133,2]
[383684789,1757085043472,-3000.0,0.0002134,2]
[383684790,1757085043482,-3000.0,0.0002135,2]
[383684791,1757085043493,-3000.0,0.0002136,2]
[383684792,1757085043504,-3000.0,0.0002137,2]
[383684793,1757085043517,-3000.0,0.0002138,2]
[383684794,1757085043526,-3000.0,0.0002139,2]
[383684795,1757085043537,-3000.0,0.000214,2]
[383684796,1757085043546,-3000.0,0.0002141,2]
[383684797,1757085043555,-3000.0,0.0002142,2]
[383684798,1757085043564,-3000.0,0.0002143,2]
[383684799,1757085043573,-3978.495827,0.0002144,2]
[383684800,1757085043583,-502.90963463,0.00021644,2]
[383684801,1757085043592,-633.0,0.00021701,2]
[383684802,1757085043601,-409.0,0.00021701,2]
[383684803,1757085043610,-2700.0,0.00021712,2]
[383684804,1757085043620,-5000.0,0.00021835,2]
[383684805,1757085043630,-300.0,0.00021873,2]
[383684806,1757085043639,-79053.66,0.0002189,2]
[383684807,1757085043649,-303.15844934,0.00021899,2]
[383684808,1757085043658,-544.184632,0.00021918,2]
[383684809,1757085043667,-382.326529,0.00021918,2]
[383684810,1757085043677,-382.326529,0.00021918,2]
[383684811,1757085043686,-382.326529,0.00021918,2]
[383684812,1757085043696,-382.326529,0.00021918,2]
[383684813,1757085043705,-382.326529,0.00021918,2]
[383684814,1757085043715,-382.326529,0.00021918,2]
[383684815,1757085043724,-382.326529,0.00021918,2]
[383684816,1757085043734,-382.326529,0.00021918,2]
[383684817,1757085043746,-382.326529,0.00021918,2]
[383684818,1757085043755,-382.326529,0.00021918,2]
[383684819,1757085043764,-382.326529,0.00021918,2]
[383684820,1757085043774,-382.326529,0.00021918,2]
[383684821,1757085043784,-382.326529,0.00021918,2]
[383684822,1757085043793,-382.326529,0.00021918,2]
[383684823,1757085043803,-382.326529,0.00021918,2]
[383684824,1757085043813,-382.326529,0.00021918,2]
[383684825,1757085043822,-382.326529,0.00021918,2]
[383684826,1757085043832,-150.0,0.00021918,2]
[383684827,1757085043841,-57751.48,0.00022,7]
[383684828,1757085043852,-9894.87,0.00022,7]
[383684829,1757085043861,-45152.5,0.00022,2]
[383684830,1757085043871,-6818.86,0.00022,7]
[383684831,1757085043881,-2011.0,0.00022,2]
[383684832,1757085043890,-7471.11,0.00022,7]
[383684833,1757085043900,-203.18701864,0.00022,7]
[383684834,1757085043909,-160.0,0.00022,7]
[383684835,1757085043919,-530.48792916,0.00022,7]
[383684836,1757085043928,-417.15472785,0.00022,7]
[383684837,1757085043937,-523.46,0.000221,2]
[383684838,1757085043947,-1000.0,0.00022333,20]
[383684839,1757085043957,-492.0,0.00022333,20]
[383684840,1757085043967,-254.82934047,0.00022452,2]
[383684841,1757085043978,-8448.07539903,0.0002247,2]
[383684842,1757085043988,-5000.0,0.00022558,2]
[383684843,1757085043998,-2700.0,0.00022808,2]
[383684844,1757085044008,-523.46,0.00023,2]
[383684845,1757085044018,-226.02914947,0.00023129,2]
[383684846,1757085044027,-5000.0,0.0002328,2]
[383684847,1757085044037,-1832.8,0.00023287,2]
[383684848,1757085044047,-151.0,0.00023288,7]
[383684849,1757085044057,-151.0,0.00023288,7]
[383684850,1757085044066,-151.0,0.00023288,7]
[383684851,1757085044077,-245.0,0.00023288,7]
[383684852,1757085044087,-160.0,0.000233,3]
[383684853,1757085044097,-232.96244142,0.000233,3]
[383684854,1757085044107,-217.560113,0.000233,3]
[383684855,1757085044117,-203.18701864,0.000233,3]
[383684856,1757085044126,-160.0,0.000233,3]
[383684857,1757085044135,-530.48792916,0.000233,3]
[383684858,1757085044144,-846.49761657,0.000233,3]
[383684859,1757085044153,-160.0,0.000234,3]
[383684860,1757085044163,-160.0,0.000234,3]
[383684861,1757085044172,-232.96244142,0.000234,3]
[383684862,1757085044181,-217.560113,0.000234,3]
[383684863,1757085044190,-203.18701864,0.000234,3]
[383684864,1757085044199,-8448.07539903,0.00023755,2]
[383684865,1757085044209,-6818.86,0.000238,7]
[383684866,1757085044218,-523.46,0.00023817,2]
[383684867,1757085044227,-10960.32701763,0.000239,2]
[383684868,1757085044237,-800.0,0.00023942,2]
[383684869,1757085044246,-162.80219612,0.00023979,2]
[383684870,1757085044255,-160.0,0.00024,7]
[383684871,1757085044263,-160.0,0.00024,7]
[383684872,1757085044271,-160.0,0.00024,7]
[383684873,1757085044279,-9894.87,0.00024,7]
[383684874,1757085044288,-45152.5,0.00024,2]
[383684875,1757085044296,-7471.11,0.00024,7]
[383684876,1757085044305,-160.0,0.00024,7]
[383684877,1757085044313,-160.0,0.00024,7]
[383684878,1757085044322,-160.0,0.00024,7]
[383684879,1757085044331,-232.96244142,0.00024,7]
[383684880,1757085044340,-217.560113,0.00024,7]
[383684881,1757085044349,-232.96244142,0.00024,7]
[383684882,1757085044359,-217.560113,0.00024,7]
[383684883,1757085044368,-203.18701864,0.00024,7]
[383684884,1757085044378,-530.48792916,0.00024,7]
[383684885,1757085044387,-846.49761657,0.00024,7]
[383684886,1757085044396,-846.49761657,0.00024,7]
[383684887,1757085044406,-417.15472785,0.00024,7]
[383684888,1757085044416,-5000.0,0.00024002,2]
[383684889,1757085044426,-6100.0,0.000243,5]
[383684890,1757085044435,-388.4804453,0.00024466,2]
[383684891,1757085044444,-156.790496,0.00024508,20]
[383684892,1757085044454,-203.0,0.0002453,10]
[383684893,1757085044464,-1000.0,0.00024566,20]
[383684894,1757085044474,-791.0,0.00024566,20]
[383684895,1757085044484,-150.0,0.00024658,2]
[383684896,1757085044498,-200.0,0.00024658,15]
[383684897,1757085044511,-380.0,0.00024658,2]
[383684898,1757085044521,-151.0,0.00024658,7]
[383684899,1757085044531,-151.0,0.00024658,7]
[383684901,1757085044541,-151.0,0.00024658,7]
[383684903,1757085044550,-151.0,0.00024658,7]
[383684904,1757085044559,-151.0,0.00024658,7]
[383684905,1757085044569,-151.672284,0.00024658,7]
[383684906,1757085044578,-500.0,0.00024658,2]
[383684907,1757085044588,-156.790496,0.00024684,2]
[383684908,1757085044598,-254.82934047,0.00024691,2]
[383684909,1757085044607,-633.0,0.00024701,2]
[383684910,1757085044617,-409.0,0.00024701,2]
[383684911,1757085044626,-5000.0,0.00024724,2]
[383684912,1757085044636,-523.46,0.00024725,2]
[383684913,1757085044646,-800.0,0.00024782,2]
[383684924,1757085044762,-57751.48,0.000248,7]
[383684926,1757085044772,-40986.8654398,0.000248,2]
[383684928,1757085044782,-491.12960853,0.0002483,2]
[383684930,1757085044792,-452.66337914,0.000249,2]
[383684931,1757085044801,-691612.630212,0.000249,2]
[383684932,1757085044811,-800.0,0.0002493,2]
[383684933,1757085044821,-500.0,0.00024932,2]
[383684935,1757085044831,-1306.104349,0.0002494,5]
[383684937,1757085044840,-1000.0,0.0002496,5]
[383684939,1757085044852,-1000.0,0.0002498,5]
[383684940,1757085044862,-1150.142308,0.0002498,5]
[383684941,1757085044872,-2700.0,0.00025,2]
[383684943,1757085044882,-518.10869181,0.00025,10]
[383684944,1757085044892,-166.95,0.00025,14]
[383684945,1757085044901,-10703.71458153,0.00025,2]
[383684946,1757085044911,-1000.0,0.00025,5]
[383684947,1757085044920,-1000.0,0.00025,5]
[383684949,1757085044931,-1000.986642,0.00025,2]
[383684950,1757085044941,-250.0,0.00025,10]
[383684951,1757085044951,-8448.07539903,0.00025039,2]
[383684952,1757085044960,-250.0,0.000251,10]
[383684953,1757085044971,-6818.86,0.000252,7]
[383684954,1757085044980,-250.0,0.000252,10]
[383684955,1757085044991,-1832.8,0.00025205,4]
[383684956,1757085045002,-250.0,0.00025205,2]
[383684957,1757085045012,-500.0,0.00025206,2]
[383684958,1757085045022,-250.0,0.000253,10]
[383684959,1757085045031,-544.184632,0.00025342,2]
[383684960,1757085045041,-250.0,0.000254,10]
[383684961,1757085045051,-388.4804453,0.00025425,2]
[383684962,1757085045061,-273.6683559,0.00025425,2]
[383684963,1757085045070,-5000.0,0.00025446,2]
[383684964,1757085045079,-500.0,0.0002548,2]
[383684965,1757085045088,-250.0,0.000255,10]
[383684966,1757085045098,-9894.87,0.000256,7]
[383684967,1757085045108,-45152.5,0.000256,2]
[383684968,1757085045118,-7471.11,0.000256,7]
[383684969,1757085045128,-250.0,0.000256,10]
[383684970,1757085045138,-523.46,0.00025634,7]
[383684971,1757085045148,-250.0,0.000257,10]
[383684972,1757085045157,-350.0,0.00025753,2]
[383684973,1757085045168,-500.0,0.00025754,2]
[383684974,1757085045176,-250.0,0.000258,10]
[383684975,1757085045185,-250.0,0.000259,10]
[383684976,1757085045195,-57751.48,0.00026,7]
[383684977,1757085045204,-250.0,0.00026,10]
[383684978,1757085045213,-500.0,0.00026028,2]
[383684979,1757085045223,-1667.04137583,0.0002605,8]
[383684980,1757085045233,-250.0,0.000261,10]
[383684981,1757085045244,-5000.0,0.00026168,2]
[383684982,1757085045254,-450.0,0.00026301,2]
[383684983,1757085045264,-500.0,0.00026302,2]
[383684985,1757085045274,-8448.07539903,0.00026324,5]
[383684986,1757085045283,-500.0,0.0002638,5]
[383684987,1757085045293,-500.0,0.0002638,5]
[383684988,1757085045303,-500.0,0.0002638,20]
[383684989,1757085045312,-500.0,0.0002638,5]
[383684990,1757085045322,-150.11,0.00026518,7]
[383684991,1757085045331,-523.46,0.00026543,7]
[383684992,1757085045342,-500.0,0.00026576,2]
[383684993,1757085045352,-6818.86,0.000266,7]
[383684994,1757085045362,-156.27936529,0.00026602,7]
[383684995,1757085045371,-151.43,0.00026602,7]
[383684996,1757085045381,-162.16,0.00026631,7]
[383684997,1757085045391,-440.197386,0.00026676,2]
[383684998,1757085045400,-151.43,0.00026702,7]
[383684999,1757085045410,-162.16,0.00026731,7]
[383685000,1757085045419,-162.16650007,0.00026831,7]
[383685001,1757085045429,-550.0,0.00026849,2]
[383685002,1757085045439,-347.04758333,0.0002685,2]
[383685003,1757085045449,-5000.0,0.00026891,3]
[383685004,1757085045459,-254.82934047,0.00026929,2]
[383685005,1757085045469,-1208.6311419,0.00026964,2]
[383685006,1757085045479,-7471.11,0.00027,7]
[383685007,1757085045488,-530.48792916,0.00027,3]
[383685008,1757085045499,-417.15472785,0.00027,3]
[383685009,1757085045512,-417.15472785,0.00027,3]
[383685010,1757085045522,-1000.0,0.00027022,20]
[383685011,1757085045532,-1000.0,0.00027022,20]
[383685012,1757085045542,-1832.8,0.00027123,6]
[383685013,1757085045553,-2700.0,0.00027192,2]
[383685014,1757085045562,-500.0,0.00027397,7]
[383685015,1757085045571,-500.0,0.00027397,7]
[383685016,1757085045582,-440.0,0.00027397,7]
[383685017,1757085045592,-650.0,0.00027397,5]
[383685018,1757085045602,-200.0,0.00027397,5]
[383685019,1757085045611,-162.75077051,0.00027397,2]
[383685020,1757085045621,-57751.48,0.000274,7]
[383685022,1757085045631,-9046.53265153,0.000274,7]
[383685025,1757085045915,-151.0,0.00015195,2]
[383685026,1757085045925,-151.0,0.00015195,2]
[383685027,1757085045934,-151.0,0.0001589,2]
[383685028,1757085045944,-382.326529,0.00021918,2]
[383685029,1757085045955,-382.326529,0.00021918,2]
[383685030,1757085045965,-382.32652224,0.00021918,2]
[383685032,1757085045975,-848.33734847,0.000274,7]
[383685033,1757085045984,-45152.5,0.000274,2]
[383685034,1757085045995,-500.0,0.00027408,2]
[383685035,1757085046005,-523.46,0.00027451,7]
[383685036,1757085046015,-500.0,0.00027552,2]
[383685037,1757085046024,-160.0,0.00027562,3]
[383685038,1757085046034,-500.0,0.00027566,2]
[383685039,1757085046044,-8312.9365334,0.00027609,8]
[383685040,1757085046056,-135.13886563,0.00027609,8]
[383685041,1757085046066,-4217.3380031,0.00027613,3]
[383685042,1757085046102,-782.6619969,0.00027613,3]
[383685043,1757085046112,-500.0,0.00027628,2]
[383685044,1757085046122,-409.0,0.00027701,2]
[383685045,1757085046131,-966.45,0.00027725,2]
[383685046,1757085046141,-322.116108,0.00027739,30]
[383685047,1757085046151,-154.8870065,0.00027739,30]
[383685048,1757085046160,-459.0,0.00027739,30]
[383685049,1757085046170,-153.0,0.00027739,30]
[383685050,1757085046180,-153.0,0.00027739,30]
[383685051,1757085046189,-153.0,0.00027739,30]
[383685052,1757085046198,-500.0,0.00027773,2]
[383685053,1757085046209,-500.0,0.00027783,2]
[383685054,1757085046219,-500.0,0.00027785,2]
[383685055,1757085046229,-500.0,0.00027807,2]
[383685056,1757085046238,-500.0,0.0002785,2]
[383685057,1757085046248,-500.0,0.0002788,2]
[383685059,1757085046258,-500.0,0.00027897,2]
[383685060,1757085046267,-6818.86,0.000279,7]
[383685062,1757085046277,-750.0,0.00027945,5]
[383685063,1757085046287,-726.98802144,0.00027982,2]
[383685064,1757085046296,-160.0,0.00028,3]
[383685066,1757085046306,-160.0,0.00028,2]
[383685067,1757085046315,-846.49761657,0.00028,3]
[383685068,1757085046325,-417.15472785,0.00028,3]
[383685069,1757085046334,-3763.03265819,0.00028,60]
[383685073,1757085046411,-1242.75794197,0.0002092,2]
[383685074,1757085046423,-783.75963977,0.0002092,2]
[383685075,1757085046432,-2026.51758174,0.00020933,2]
[383685076,1757085046442,-1736.77147733,0.00022558,2]
[383685077,1757085046452,-363.78734181,0.00028,60]
[383685078,1757085046462,-500.0,0.00028029,2]
[383685079,1757085046472,-200.0,0.00028041,120]
[383685080,1757085046481,-500.0,0.00028063,2]
[383685081,1757085046492,-500.0,0.00028128,2]
[383685082,1757085046503,-5818.58969397,0.000282,7]
[383685083,1757085046527,-2026.51758174,0.00020945,2]
[383685084,1757085046537,-6355.83481826,0.0002489,10]
[383685085,1757085046550,-658.21204395,0.0002489,10]
[383685086,1757085046571,-2026.51758174,0.00020958,2]
[383685087,1757085046581,-5830.34313779,0.0002489,10]
[383685088,1757085046591,-1652.52030603,0.000282,7]
[383685089,1757085046601,-500.0,0.00028249,2]
[383685090,1757085046611,-457.43233862,0.0002829,20]
[383685091,1757085046621,-500.0,0.00028292,2]
[383685092,1757085046631,-500.0,0.00028299,2]
[383685093,1757085046641,-500.0,0.00028312,2]
[383685094,1757085046651,-500.0,0.00028324,2]
[383685095,1757085046660,-5000.0,0.00028335,3]
[383685096,1757085046670,-500.0,0.00028356,2]
[383685097,1757085046703,-500.0,0.00028362,2]
[383685098,1757085046713,-300.0,0.000284,120]
[383685099,1757085046723,-159.6208135,0.00028411,30]
[383685100,1757085046733,-308.8858751,0.00028411,30]
[383685101,1757085046744,-200.0,0.00028414,120]
[383685102,1757085046754,-500.0,0.00028448,2]
[383685103,1757085046764,-500.0,0.00028483,2]
[383685104,1757085046773,-150.17079572,0.00028493,5]
[383685105,1757085046783,-365.6149653,0.00028493,30]
[383685106,1757085046793,-500.0,0.00028554,2]
[383685107,1757085046802,-252.8367437,0.00028561,30]
[383685108,1757085046811,-500.0,0.00028565,2]
[383685109,1757085046820,-153.0,0.00028568,30]
[383685110,1757085046828,-153.0,0.00028568,30]
[383685111,1757085046838,-153.0,0.00028568,30]
[383685112,1757085046847,-153.0,0.00028568,30]
[383685113,1757085046859,-500.0,0.0002858,2]
[383685114,1757085046869,-57751.48,0.000286,7]
[383685115,1757085046878,-45152.5,0.000287,2]
[383685116,1757085046888,-200.0,0.00028704,120]
[383685117,1757085046897,-200.0,0.00028758,120]
[383685118,1757085046907,-500.0,0.00028797,2]
[383685119,1757085046916,-9894.87,0.000288,7]
[383685120,1757085046926,-1000.0,0.000288,60]
[383685121,1757085046936,-500.0,0.00028804,2]
[383685122,1757085046945,-500.0,0.00028824,2]
[383685123,1757085046955,-500.0,0.00028828,2]
[383685124,1757085046964,-500.0,0.00028892,2]
[383685125,1757085046973,-8448.07539903,0.00028894,10]
[383685126,1757085046983,-500.0,0.00028935,2]
[383685127,1757085046993,-500.0,0.00028947,2]
[383685128,1757085047003,-160.0,0.00029,10]
[383685129,1757085047012,-160.0,0.00029,10]
[383685130,1757085047022,-200.0,0.00029,60]
[383685131,1757085047031,-160.0,0.00029,10]
[383685132,1757085047040,-6818.86,0.00029,7]
[383685133,1757085047050,-160.0,0.00029,10]
[383685134,1757085047059,-232.96244142,0.00029,10]
[383685135,1757085047069,-217.560113,0.00029,10]
[383685136,1757085047078,-203.18701864,0.00029,10]
[383685137,1757085047087,-160.0,0.00029,10]
[383685138,1757085047096,-846.49761657,0.00029,10]
[383685139,1757085047106,-10569.94136612,0.00029,10]
[383685140,1757085047115,-417.15472785,0.00029,10]
[383685141,1757085047124,-163.83638433,0.00029011,120]
[383685142,1757085047134,-500.0,0.00029023,2]
[383685143,1757085047143,-500.0,0.00029034,2]
[383685144,1757085047152,-1832.8,0.00029041,8]
[383685145,1757085047162,-228.66925947,0.00029041,120]
[383685146,1757085047171,-5000.0,0.00029057,3]
[383685147,1757085047180,-200.0,0.00029109,120]
[383685148,1757085047189,-1361.32211607,0.00029121,22]
[383685149,1757085047199,-500.0,0.00029147,2]
[383685150,1757085047208,-500.0,0.00029166,2]
[383685151,1757085047217,-254.82934047,0.00029168,2]
[383685152,1757085047226,-160.0,0.0002922,4]
[383685153,1757085047236,-160.87434802,0.0002922,5]
[383685154,1757085047248,-500.0,0.00029223,2]
[383685155,1757085047257,-3982.61911132,0.00029228,5]
[383685156,1757085047267,-19999.0,0.00029228,2]
[383685157,1757085047276,-153.0,0.00029233,30]
[383685158,1757085047285,-153.0,0.00029233,30]
[383685159,1757085047295,-153.0,0.00029233,30]
[383685160,1757085047304,-153.0,0.00029233,30]
[383685161,1757085047313,-153.0,0.00029233,30]
[383685162,1757085047323,-306.0,0.00029233,30]
[383685163,1757085047332,-1056460.40648325,0.00029268,20]
[383685177,1757085646226,500.0,0.00029188,60]
[383685178,1757085661727,500.0,0.00029188,60]
[383685179,1757085674566,4001.0,0.00029188,60]
[383685184,1757085804464,180.0,0.000131,2]
[383685196,1757086086008,-374.167778,0.00013699,2]
[383685197,1757086086041,-1200.0,0.00014245,2]
[383685198,1757086086070,-409.0,0.00017174,2]
[383685199,1757086086100,-480.0,0.00019799,2]
[383685200,1757086086131,-427.48237484,0.00019799,2]
[383685201,1757086086286,-3804.84558874,0.000199,2]
[383685202,1757086086330,-233.86410558,0.000199,2]
[383685203,1757086086370,-2156.45471694,0.000199,2]
[383685204,1757086086400,-409.0,0.00020174,2]
[383685205,1757086086430,-374.167778,0.00020187,2]
[383685206,1757086086458,-500.0,0.00020734,2]
[383685207,1757086086487,-500.0,0.00020816,2]
[383685208,1757086086516,-251.88679767,0.000209,2]
[383685209,1757086086544,-300.0,0.00021069,2]
[383685210,1757086086572,-250.0,0.0002107,2]
[383685211,1757086086601,-250.0,0.0002107,2]
[383685212,1757086086704,-250.0,0.0002107,2]
[383685213,1757086086714,-250.0,0.0002107,2]
[383685214,1757086086725,-250.0,0.0002107,2]
[383685215,1757086086734,-250.0,0.0002107,2]
[383685216,1757086086745,-203.65511865,0.0002107,2]
[383685217,1757086086764,-46.34488135,0.0002107,2]
[383685218,1757086086774,-250.0,0.0002107,2]
[383685219,1757086086783,-250.0,0.0002107,2]
[383685220,1757086086793,-480.0,0.00021083,2]
[383685221,1757086086803,-475.4696204,0.00021083,2]
[383685222,1757086086815,-480.0,0.00021083,2]
[383685223,1757086086824,-174.64021519,0.00021083,2]
[383685224,1757086086842,-305.35978481,0.00021083,2]
[383685225,1757086086852,-103.64021519,0.00021129,2]
[383685226,1757086086866,-156.35978481,0.00021129,2]
[383685227,1757086086875,-217.80799319,0.00021183,2]
[383685228,1757086086913,-262.19200681,0.00021183,2]
[383685229,1757086086945,-480.0,0.00021183,2]
[383685230,1757086086977,-480.0,0.00021183,2]
[383685231,1757086087006,-480.0,0.00021184,2]
[383685233,1757086087035,-480.0,0.00021184,2]
[383685234,1757086087064,-480.0,0.00021184,2]
[383685235,1757086087233,-3804.8455888,0.00021185,2]
[383685236,1757086087453,-405.30351638,0.00016974,2]
[383685237,1757086087463,-2390.3188224,0.00021185,2]
[383685238,1757086087472,-144.03627125,0.00021457,2]
[383685239,1757086087498,-335.96372875,0.00021457,2]
[383685240,1757086087507,-480.0,0.00021458,2]
[383685241,1757086087516,-480.0,0.00021458,2]
[383685242,1757086087528,-480.0,0.00021731,2]
[383685243,1757086087546,-480.0,0.00021732,2]
[383685244,1757086087556,-480.0,0.00021732,2]
[383685245,1757086087566,-326.52869,0.00021918,2]
[383685246,1757086087576,-285.23377941,0.00021918,2]
[383685247,1757086087587,-480.0,0.00022005,2]
[383685248,1757086087597,-480.0,0.00022006,2]
[383685249,1757086087606,-480.0,0.00022006,2]
[383685250,1757086087616,-480.0,0.00022279,2]
[383685251,1757086087625,-480.0,0.0002228,2]
[383685252,1757086087635,-447.43821304,0.0002228,2]
[383685294,1757086236054,-300.0,0.00013899,2]
[383685295,1757086236063,-2093.07115834,0.000139,2]
[383685296,1757086236074,-3346.53294189,0.000139,2]
[383685322,1757086238425,-3721.54234939,0.000139,2]
[383685384,1757086240788,-5095.57368603,0.000139,2]
[383685385,1757086240798,-500.0,0.00013999,2]
[383685386,1757086240809,-500.0,0.00013999,2]
[383685387,1757086240818,-500.0,0.00013999,2]
[383685388,1757086240828,-632.49462535,0.00013999,2]
[383685389,1757086240839,-88798.33000461,0.00014,2]
[383685390,1757086240851,-420.0,0.00015229,2]
[383685391,1757086240862,-587.0,0.00016686,2]
[383685392,1757086240872,-409.0,0.00017174,2]
[383685393,1757086240881,-2153.0,0.00017174,2]
[383685394,1757086240892,-1994.02012391,0.00017955,6]
[383685395,1757086240902,-627.26,0.00018136,6]
[383685397,1757086240913,-823.0,0.00018282,2]
[383685398,1757086240924,-254.50591187,0.00019062,2]
[383685399,1757086240934,-235.77726409,0.00019062,2]
[383685400,1757086240943,-500.0,0.00019062,2]
[383685401,1757086240953,-500.0,0.00019062,2]
[383685402,1757086240963,-500.0,0.00019062,2]
[383685403,1757086240972,-500.0,0.00019062,2]
[383685404,1757086240982,-500.0,0.00019062,2]
[383685405,1757086240991,-500.0,0.00019062,2]
[383685406,1757086241002,-255.48932605,0.00019062,2]
[383685407,1757086241014,-500.0,0.00019062,2]
[383685408,1757086241025,-500.0,0.00019062,2]
[383685409,1757086241036,-500.0,0.00019062,2]
[383685410,1757086241048,-500.0,0.00019062,2]
[383685411,1757086241059,-500.0,0.00019062,2]
[383685412,1757086241068,-500.0,0.00019062,2]
[383685413,1757086241078,-500.0,0.00019062,2]
[383685414,1757086241088,-427.77243568,0.00019062,2]
[383685719,1757086345097,-252.69725316,0.00013697,2]
[383685720,1757086349585,-47.30274684,0.00013697,2]
[383685721,1757086349608,-480.0,0.00013698,2]
[383685722,1757086349632,-55.43781277,0.00013698,2]
[383685723,1757086351120,-424.56218723,0.00013698,2]
[383685724,1757086351145,-79.80637406,0.00013698,2]
[383685725,1757086354105,-205.83156262,0.00013698,2]
[383685726,1757086357966,-173.29930981,0.00013698,2]
[383685727,1757086362961,-21.06275351,0.00013698,2]
[383685728,1757086362985,-278.93724649,0.00013698,2]
[383685729,1757086365811,-201.06275351,0.00013698,2]
[383685730,1757086365834,-60.33135031,0.00013698,2]